fUSD/lending_fUSD_20241009
["ID","MTS","AMOUNT","RATE_DAILY","PERIOD"]
[340065524,1728447031844,-150.0,0.00021941,2]
[340065525,1728447031854,-432.62,0.00021941,2]
[340065526,1728447031863,-622.14,0.00022019,2]
[340065527,1728447031872,-248.5,0.00022053,2]
[340065528,1728447031882,-153.25,0.00022137,30]
[340065529,1728447031891,-167.29,0.00022386,2]
[340065530,1728447031905,-1000.0,0.0002258,2]
[340065532,1728447031915,-162.14196119,0.00022612,2]
[340065534,1728447031923,-128179.071549,0.0002267,5]
[340065536,1728447031932,-717.86889604,0.0002267,2]
[340065537,1728447031942,-500.0,0.00022673,2]
[340065539,1728447031951,-500.0,0.00022679,2]
[340065541,1728447031960,-442.30781307,0.00022679,2]
[340065543,1728447031969,-500.0,0.00022679,2]
[340065545,1728447031979,-500.0,0.00022679,2]
[340065547,1728447031989,-500.0,0.00022679,2]
[340065549,1728447031998,-500.0,0.00022679,2]
[340065551,1728447032008,-457.42590168,0.00022679,2]
[340065553,1728447032018,-4814.31417551,0.0002268,2]
[340065555,1728447032030,-1284.72544455,0.0002268,2]
[340065557,1728447032041,-2442.13918684,0.0002268,2]
[340065559,1728447032052,-1217.12215082,0.0002268,2]
[340065561,1728447032063,-55867.88712503,0.0002268,2]
[340065563,1728447032074,-36636.78124274,0.0002268,2]
[340065565,1728447032085,-4248.04854285,0.0002268,2]
[340065568,1728447032097,-3201.75970489,0.0002268,2]
[340065570,1728447032108,-9495.00216909,0.0002268,2]
[340065572,1728447032120,-337616.79679358,0.0002268,2]
[340065574,1728447032132,-4700.0,0.0002268,2]
[340065576,1728447032147,-20030.85499759,0.0002268,2]
[340065577,1728447032158,-10961.6591478,0.0002268,2]
[340065578,1728447032170,-263.0764486,0.0002268,2]
[340065581,1728447037703,-1029.77756922,0.00014454,2]
[340065582,1728447037713,-580.67908192,0.00022612,2]
[340065583,1728447037724,-391.91717891,0.0002268,2]
[340065584,1728447037757,-17762.14285832,0.0002268,2]
[340065585,1728447037769,-461.545,0.0002268,2]
[340065586,1728447037809,-6903.18681663,0.0002268,2]
[340065587,1728447037915,-4658.26488133,0.0002268,2]
[340065588,1728447037926,-423.81,0.00022712,2]
[340065590,1728447038083,-423.81,0.00022712,2]
[340065592,1728447038096,-847.31,0.00022712,2]
[340065593,1728447038105,-2544.09574955,0.00022758,2]
[340065594,1728447038114,-151.0,0.0002276,7]
[340065595,1728447038124,-151.0,0.0002276,7]
[340065596,1728447038134,-151.0,0.0002276,7]
[340065597,1728447038143,-151.0,0.0002276,7]
[340065598,1728447038153,-21363.1785916,0.0002276,5]
[340065599,1728447038162,-581.96014317,0.0002277,2]
[340065600,1728447038171,-151.0,0.0002277,7]
[340065601,1728447038181,-151.0,0.0002277,7]
[340065602,1728447038190,-151.0,0.0002277,7]
[340065603,1728447038200,-1801.0859,0.0002277,2]
[340065604,1728447038210,-30732.7789,0.0002277,2]
[340065605,1728447038220,-21363.1785916,0.0002279,5]
[340065606,1728447038229,-24873.593451,0.0002279,5]
[340065607,1728447038239,-151.0,0.0002279,7]
[340065608,1728447038248,-151.0,0.0002279,7]
[340065609,1728447038258,-151.0,0.0002279,7]
[340065610,1728447038267,-3484.528,0.000228,2]
[340065611,1728447038277,-20773.4083,0.000228,2]
[340065612,1728447038286,-6344.7781,0.000228,2]
[340065613,1728447038295,-3834.5885,0.000228,2]
[340065614,1728447038305,-1000.0,0.000228,2]
[340065615,1728447038314,-10159.6656,0.000228,2]
[340065616,1728447038323,-631.217096,0.000228,7]
[340065617,1728447038332,-631.217096,0.000228,7]
[340065618,1728447038341,-151.0,0.000228,7]
[340065619,1728447038350,-151.0,0.000228,7]
[340065620,1728447038360,-151.0,0.000228,7]
[340065621,1728447038369,-151.0,0.000228,7]
[340065622,1728447038379,-151.0,0.000228,7]
[340065623,1728447038388,-300.0,0.000228,8]
[340065624,1728447038397,-151.947673,0.0002286,7]
[340065625,1728447038406,-151.0,0.0002286,7]
[340065626,1728447038415,-151.0,0.0002286,7]
[340065627,1728447038425,-21363.1785916,0.0002286,5]
[340065628,1728447038434,-24873.593451,0.0002286,5]
[340065629,1728447038444,-500.0,0.0002287,2]
[340065630,1728447038453,-500.0,0.0002287,2]
[340065631,1728447038462,-500.0,0.0002287,2]
[340065632,1728447038471,-500.0,0.0002287,2]
[340065633,1728447038481,-500.0,0.0002287,2]
[340065634,1728447038491,-500.0,0.0002287,2]
[340065635,1728447038500,-500.0,0.0002287,2]
[340065636,1728447038510,-500.0,0.0002287,2]
[340065637,1728447038519,-500.0,0.0002287,2]
[340065638,1728447038529,-500.0,0.0002287,2]
[340065639,1728447038538,-500.0,0.0002287,2]
[340065640,1728447038547,-500.0,0.0002287,2]
[340065641,1728447038557,-500.0,0.0002287,2]
[340065642,1728447038566,-500.0,0.0002287,2]
[340065643,1728447038576,-500.0,0.0002287,2]
[340065644,1728447038585,-527.05833734,0.0002287,2]
[340065645,1728447038594,-151.0,0.0002287,7]
[340065646,1728447038604,-151.836158,0.0002287,7]
[340065647,1728447038613,-198.910549,0.0002287,7]
[340065648,1728447038622,-198.910549,0.0002287,7]
[340065649,1728447038632,-198.910549,0.0002287,7]
[340065650,1728447038641,-198.910549,0.0002287,7]
[340065651,1728447038650,-151.0,0.0002287,7]
[340065652,1728447038659,-297.334571,0.0002287,7]
[340065653,1728447038669,-151.0,0.0002287,7]
[340065654,1728447038678,-151.0,0.0002287,7]
[340065655,1728447038687,-151.0,0.0002287,7]
[340065656,1728447038696,-151.0,0.0002287,7]
[340065657,1728447038706,-289.382697,0.0002287,7]
[340065658,1728447038715,-151.400255,0.0002287,7]
[340065659,1728447038724,-158.706918,0.0002287,7]
[340065660,1728447038734,-151.0,0.0002287,7]
[340065661,1728447038743,-158.706918,0.0002287,7]
[340065662,1728447038752,-151.0,0.0002287,7]
[340065663,1728447038762,-158.706918,0.0002287,7]
[340065664,1728447038771,-158.706918,0.0002287,7]
[340065665,1728447038780,-151.0,0.0002287,7]
[340065666,1728447038791,-151.0,0.0002287,7]
[340065667,1728447038802,-151.0,0.0002287,7]
[340065668,1728447038811,-151.0,0.0002287,7]
[340065669,1728447038822,-151.0,0.0002287,7]
[340065670,1728447038833,-163.099369,0.0002287,7]
[340065671,1728447038843,-151.0,0.0002287,7]
[340065672,1728447038853,-151.0,0.0002287,7]
[340065673,1728447038864,-151.0,0.0002287,7]
[340065674,1728447038874,-151.0,0.0002287,7]
[340065675,1728447038884,-151.0,0.0002287,7]
[340065676,1728447038896,-151.0,0.0002287,7]
[340065677,1728447038907,-164.730737,0.0002287,7]
[340065678,1728447038916,-151.0,0.0002287,7]
[340065679,1728447038925,-151.0,0.0002287,7]
[340065680,1728447038935,-151.0,0.0002287,7]
[340065681,1728447038946,-151.0,0.0002287,7]
[340065682,1728447038957,-151.0,0.0002287,7]
[340065683,1728447038970,-151.0,0.0002287,7]
[340065684,1728447038980,-151.0,0.0002287,7]
[340065685,1728447038992,-151.0,0.0002287,7]
[340065686,1728447039001,-151.0,0.0002287,7]
[340065687,1728447039011,-151.0,0.0002287,7]
[340065688,1728447039020,-151.0,0.0002287,7]
[340065689,1728447039030,-151.0,0.0002287,7]
[340065690,1728447039039,-151.0,0.0002287,7]
[340065691,1728447039049,-151.0,0.0002287,7]
[340065692,1728447039059,-151.0,0.0002287,7]
[340065693,1728447039069,-151.0,0.0002287,7]
[340065694,1728447039079,-151.0,0.0002287,7]
[340065695,1728447039089,-153.387798,0.0002287,7]
[340065696,1728447039099,-151.0,0.0002287,7]
[340065697,1728447039108,-151.0,0.0002287,7]
[340065698,1728447039119,-151.0,0.0002287,7]
[340065699,1728447039131,-631.217096,0.0002287,7]
[340065700,1728447039141,-631.217096,0.0002287,7]
[340065701,1728447039150,-631.217096,0.0002287,7]
[340065702,1728447039160,-631.217096,0.0002287,7]
[340065703,1728447039170,-925.7758759,0.0002287,2]
[340065704,1728447039179,-151.0,0.0002287,7]
[340065705,1728447039189,-43477.1604,0.0002287,2]
[340065706,1728447039199,-500.0,0.0002287,2]
[340065707,1728447039216,-7500.0,0.0002288,2]
[340065708,1728447039226,-150.0,0.00022889,2]
[340065709,1728447039235,-21363.1785916,0.0002289,5]
[340065710,1728447039245,-24873.593451,0.0002289,5]
[340065711,1728447039255,-27346.17644386,0.000229,2]
[340065712,1728447039266,-351.63,0.000229,6]
[340065713,1728447039275,-198.910549,0.000229,7]
[340065714,1728447039284,-198.910549,0.000229,7]
[340065715,1728447039294,-151.0,0.000229,7]
[340065716,1728447039303,-234.810532,0.000229,7]
[340065717,1728447039312,-158.706918,0.000229,7]
[340065718,1728447039322,-151.0,0.000229,7]
[340065719,1728447039331,-158.706918,0.000229,7]
[340065720,1728447039340,-151.0,0.000229,7]
[340065721,1728447039350,-151.0,0.000229,7]
[340065722,1728447039359,-151.0,0.000229,7]
[340065723,1728447039369,-151.0,0.000229,7]
[340065724,1728447039378,-151.0,0.000229,7]
[340065725,1728447039387,-151.0,0.000229,7]
[340065726,1728447039397,-151.0,0.000229,7]
[340065727,1728447039406,-151.0,0.000229,7]
[340065728,1728447039415,-151.0,0.000229,7]
[340065729,1728447039425,-151.0,0.000229,7]
[340065731,1728447039434,-151.0,0.000229,7]
[340065732,1728447039444,-151.0,0.000229,7]
[340065733,1728447039456,-151.0,0.000229,7]
[340065734,1728447039466,-151.0,0.000229,7]
[340065735,1728447039475,-631.217096,0.000229,7]
[340065736,1728447039485,-631.217096,0.000229,7]
[340065737,1728447039495,-600.0,0.000229,8]
[340065738,1728447039504,-198.910549,0.0002297,7]
[340065739,1728447039514,-198.910549,0.0002297,7]
[340065740,1728447039524,-152.652107,0.0002297,7]
[340065741,1728447039537,-151.0,0.0002297,7]
[340065742,1728447039550,-158.706918,0.0002297,7]
[340065743,1728447039560,-158.706918,0.0002297,7]
[340065744,1728447039571,-151.0,0.0002297,7]
[340065745,1728447039580,-151.0,0.0002297,7]
[340065746,1728447039590,-151.0,0.0002297,7]
[340065747,1728447039600,-274.905668,0.0002297,7]
[340065748,1728447039609,-151.0,0.0002297,7]
[340065749,1728447039618,-151.0,0.0002297,7]
[340065750,1728447039628,-151.0,0.0002297,7]
[340065751,1728447039638,-151.0,0.0002297,7]
[340065752,1728447039647,-128179.071549,0.0002297,5]
[340065753,1728447039657,-124367.967255,0.0002297,5]
[340065754,1728447039666,-225.55840032,0.00022979,2]
[340065755,1728447039676,-940.54600899,0.00022979,2]
[340065756,1728447039686,-229344.78037897,0.0002298,2]
[340065757,1728447039695,-1000.0,0.0002298,2]
[340065758,1728447039704,-1000.0,0.0002298,2]
[340065759,1728447039713,-1000.0,0.0002298,2]
[340065760,1728447039723,-1000.0,0.0002298,2]
[340065761,1728447039732,-1000.0,0.0002298,2]
[340065762,1728447039742,-1000.0,0.0002298,2]
[340065763,1728447039751,-1000.0,0.0002298,2]
[340065764,1728447039760,-1000.0,0.0002298,2]
[340065765,1728447039770,-1000.0,0.0002298,2]
[340065766,1728447039779,-1000.0,0.0002298,2]
[340065767,1728447039788,-1000.0,0.0002298,2]
[340065768,1728447039797,-1000.0,0.0002298,2]
[340065769,1728447039806,-1000.0,0.0002298,2]
[340065770,1728447039816,-1000.0,0.0002298,2]
[340065771,1728447039825,-1000.0,0.0002298,2]
[340065772,1728447039835,-1000.0,0.0002298,2]
[340065773,1728447039844,-1000.0,0.0002298,2]
[340065774,1728447039854,-1000.0,0.0002298,2]
[340065775,1728447039863,-1000.0,0.0002298,2]
[340065776,1728447039872,-1000.0,0.0002298,2]
[340065777,1728447039881,-1000.0,0.0002298,2]
[340065778,1728447039891,-1000.0,0.0002298,2]
[340065779,1728447039904,-1000.0,0.0002298,2]
[340065780,1728447039913,-1000.0,0.0002298,2]
[340065781,1728447039922,-1000.0,0.0002298,2]
[340065782,1728447039931,-732.56915261,0.0002298,2]
[340065783,1728447039941,-198.910549,0.0002298,7]
[340065784,1728447039950,-198.910549,0.0002298,7]
[340065785,1728447039959,-198.910549,0.0002298,7]
[340065787,1728447039969,-198.910549,0.0002298,7]
[340065789,1728447039978,-151.0,0.0002298,7]
[340065790,1728447039988,-151.0,0.0002298,7]
[340065791,1728447039998,-158.706918,0.0002298,7]
[340065792,1728447040008,-158.706918,0.0002298,7]
[340065793,1728447040017,-158.706918,0.0002298,7]
[340065794,1728447040027,-158.706918,0.0002298,7]
[340065795,1728447040036,-151.0,0.0002298,7]
[340065796,1728447040045,-293.796082,0.0002298,7]
[340065797,1728447040054,-151.0,0.0002298,7]
[340065798,1728447040063,-151.0,0.0002298,7]
[340065799,1728447040073,-151.0,0.0002298,7]
[340065800,1728447040082,-151.0,0.0002298,7]
[340065801,1728447040091,-151.0,0.0002298,7]
[340065802,1728447040101,-225.266334,0.0002298,7]
[340065803,1728447040110,-151.0,0.0002298,7]
[340065804,1728447040120,-151.0,0.0002298,7]
[340065805,1728447040130,-151.0,0.0002298,7]
[340065806,1728447040140,-151.0,0.0002298,7]
[340065807,1728447040149,-151.0,0.0002298,7]
[340065808,1728447040158,-151.0,0.0002298,7]
[340065809,1728447040167,-151.0,0.0002298,7]
[340065810,1728447040177,-151.0,0.0002298,7]
[340065811,1728447040187,-151.0,0.0002298,7]
[340065812,1728447040197,-151.0,0.0002298,7]
[340065813,1728447040207,-170.206432,0.0002298,7]
[340065814,1728447040217,-151.0,0.0002298,7]
[340065815,1728447040228,-151.0,0.0002298,7]
[340065816,1728447040238,-151.0,0.0002298,7]
[340065817,1728447040248,-151.0,0.0002298,7]
[340065818,1728447040258,-245.676732,0.0002298,7]
[340065819,1728447040269,-631.217096,0.0002298,7]
[340065820,1728447040278,-631.217096,0.0002298,7]
[340065821,1728447040289,-631.217096,0.0002298,7]
[340065822,1728447040300,-631.217096,0.0002298,7]
[340065823,1728447040310,-313.47635,0.00023,2]
[340065824,1728447040320,-999.14,0.00023,2]
[340065825,1728447040330,-276.99838597,0.00023146,2]
[340065826,1728447040340,-169.5511684,0.00023146,2]
[340065827,1728447040349,-405.46280906,0.00023146,4]
[340065828,1728447040358,-5705.76467998,0.00023146,2]
[340065829,1728447040367,-2464.80000126,0.00023146,2]
[340065830,1728447040378,-591.49245725,0.00023146,2]
[340065831,1728447040388,-21363.1785916,0.00023192,5]
[340065832,1728447040398,-12436.7967255,0.00023192,5]
[340065833,1728447040407,-3554.92456397,0.00023233,5]
[340065834,1728447040423,-312.08,0.00023233,5]
[340065835,1728447040439,-292.56254165,0.00023233,5]
[340065836,1728447040496,-400.07483383,0.00023233,5]
[340065837,1728447040507,-745.83403878,0.00023233,5]
[340065838,1728447040520,-5464.19112739,0.00023233,5]
[340065839,1728447040537,-1667.12961988,0.00023233,5]
[340065840,1728447040547,-1704.88956104,0.00023236,5]
[340065841,1728447040559,-367.865,0.00023236,5]
[340065843,1728447042626,-1309.9999992,0.00023236,5]
[340065844,1728447042638,-5693.25,0.00023236,5]
[340065845,1728447042887,-3996.885938,0.00023236,5]
[340065846,1728447042900,-3004.950001,0.00023236,5]
[340065853,1728447045606,-370.18774664,0.00023236,5]
[340065856,1728447268588,185.98198465,0.000215,90]
[340065906,1728448231837,-676.4093889,0.00014054,2]
[340065909,1728448231850,-467.95787952,0.00014054,2]
[340065911,1728448231859,-1736.74654422,0.00014154,2]
[340065916,1728448231893,-153.31525578,0.00014154,2]
[340065918,1728448231902,-1144.3672684,0.00014353,2]
[340065919,1728448231912,-1051.75927876,0.00014453,2]
[340065920,1728448231922,-2647.0,0.000158,2]
[340065921,1728448231931,-272.97,0.00019447,2]
[340065922,1728448231942,-184.451814,0.00019785,2]
[340065923,1728448231952,-951.7,0.00019785,2]
[340065924,1728448231962,-184.451814,0.00020033,2]
[340065925,1728448231971,-184.451814,0.0002028,2]
[340065926,1728448231980,-184.451814,0.00020527,2]
[340065927,1728448231990,-184.451814,0.00020774,2]
[340065928,1728448232001,-394.42823753,0.00021,7]
[340065929,1728448232011,-250.0,0.00021245,2]
[340065930,1728448232020,-250.0,0.00021292,2]
[340065931,1728448232029,-697.71,0.00021308,2]
[340065932,1728448232037,-250.0,0.0002138,2]
[340065933,1728448232048,-317.73,0.00021407,2]
[340065934,1728448232059,-302.29,0.00021519,2]
[340065935,1728448232068,-181.73,0.00021528,2]
[340065936,1728448232079,-2038.13,0.00021569,2]
[340065937,1728448232089,-272.97,0.00021711,2]
[340065938,1728448232098,-500.0,0.00021875,2]
[340065939,1728448232108,-153.25,0.00022137,30]
[340065940,1728448232117,-534.59,0.00022411,2]
[340065941,1728448232126,-534.59,0.00022411,2]
[340065942,1728448232135,-534.59,0.00022411,2]
[340065943,1728448232145,-534.59,0.00022411,2]
[340065944,1728448232155,-534.59,0.00022411,2]
[340065945,1728448232164,-443.29,0.00022478,2]
[340065946,1728448232173,-691.4729,0.0002248,2]
[340065947,1728448232182,-523.76412888,0.00022538,2]
[340065948,1728448232191,-525.03375872,0.0002258,2]
[340065949,1728448232206,-3858.99,0.0002258,2]
[340065950,1728448232217,-1827.89223617,0.0002258,2]
[340065951,1728448232228,-796.3313244,0.0002258,2]
[340065952,1728448232240,-2030.54494733,0.0002258,2]
[340065953,1728448238035,-931.90621877,0.0002258,2]
[340065954,1728448238197,-377.770312,0.0002258,2]
[340065957,1728448239782,-3080.67540896,0.0002258,2]
[340065958,1728448239794,-269.32459104,0.0002258,2]
[340065959,1728448239838,-51870.46830261,0.0002258,2]
[340065960,1728448239847,-30903.54996207,0.0002258,2]
[340065961,1728448239947,-2451.88373849,0.0002258,2]
[340065962,1728448240002,-25597.16239944,0.0002258,2]
[340065963,1728448240011,-167.0,0.00022589,2]
[340065964,1728448240020,-1106.145,0.000226,2]
[340065965,1728448240029,-3000.0,0.000227,2]
[340065966,1728448240039,-600.0,0.000227,8]
[340065967,1728448240048,-1300.0,0.000228,8]
[340065968,1728448240057,-2000.0,0.000229,8]
[340065969,1728448240066,-176.333,0.00023046,2]
[340065970,1728448240074,-2500.0,0.00023119,2]
[340065971,1728448240083,-194.68540238,0.00023126,2]
[340065972,1728448240092,-2244.2362,0.00023129,2]
[340065973,1728448240102,-217.0,0.00023136,2]
[340065974,1728448240113,-705.40950674,0.00023145,2]
[340065975,1728448240123,-5988.48910162,0.00023146,2]
[340066069,1728448242760,-1596.10836118,0.00014054,2]
[340066070,1728448242770,-8969.34089838,0.00023146,2]
[340066071,1728448242779,-1919.2459,0.00023146,2]
[340066072,1728448242789,-194.04482608,0.0002316,2]
[340066073,1728448242798,-200.67429592,0.00023173,2]
[340066074,1728448242807,-64.1868615,0.000232,2]
[340066075,1728448242974,-438.44803951,0.000227,2]
[340066076,1728448242987,-1837.43896583,0.000227,2]
[340066077,1728448242999,-410.62104679,0.000232,2]
[340066078,1728448243029,-993.56644484,0.000232,2]
[340066082,1728448245733,-534.59,0.00022411,2]
[340066084,1728448245742,-838.40350222,0.0002312,2]
[340066086,1728448245787,-6482.01147131,0.0002312,2]
[340066087,1728448245799,-179.58502647,0.0002312,2]
[340066088,1728448245810,-1539.26061118,0.000232,2]
[340066089,1728448245897,-4100.95442153,0.000232,2]
[340066090,1728448245908,-1012.16,0.000232,2]
[340066091,1728448245917,-19265.8810589,0.0002321,4]
[340066092,1728448245926,-38531.7621178,0.00023216,4]
[340066093,1728448246076,-16458.48141404,0.00023219,4]
[340066094,1728448246087,-2632.51189461,0.00023219,4]
[340066097,1728448393293,250.0,0.00011,2]
[340066102,1728449431938,-300.0,0.00013,2]
[340066103,1728449431948,-350.0,0.00015,2]
[340066104,1728449431958,-400.0,0.00017,2]
[340066105,1728449431967,-160.51,0.00017164,2]
[340066106,1728449431976,-450.0,0.00019,2]
[340066107,1728449431986,-499.99,0.00019656,2]
[340066108,1728449431997,-150.0,0.000197,2]
[340066109,1728449432006,-284.63,0.00019724,2]
[340066110,1728449432015,-1162.62108335,0.00019724,2]
[340066111,1728449432028,-303.58925169,0.00019724,2]
[340066112,1728449432048,-3725.94966496,0.00019724,2]
[340066113,1728449432057,-1268.46,0.00019724,2]
[340066114,1728449432066,-500.0,0.00021,2]
[340066115,1728449432076,-250.0,0.00021379,2]
[340066116,1728449432087,-558.17,0.00021424,2]
[340066117,1728449432097,-250.0,0.00021505,2]
[340066118,1728449432107,-534.59,0.00021589,2]
[340066119,1728449432116,-534.59,0.00021589,2]
[340066120,1728449432126,-534.59,0.00021589,2]
[340066121,1728449432135,-358.92,0.00021616,2]
[340066122,1728449432144,-150.0,0.00021616,2]
[340066123,1728449432154,-150.0,0.00021616,2]
[340066124,1728449432163,-150.0,0.00021616,2]
[340066125,1728449432172,-150.0,0.00021616,2]
[340066126,1728449432182,-441.83,0.00021867,2]
[340066127,1728449432191,-284.63,0.00021988,2]
[340066128,1728449432202,-153.25,0.00022137,30]
[340066129,1728449432211,-534.59,0.00022378,2]
[340066130,1728449432220,-534.59,0.00022378,2]
[340066131,1728449432229,-358.92,0.00022378,2]
[340066132,1728449432239,-301.22,0.00022378,2]
[340066133,1728449432248,-303.76,0.00022378,2]
[340066134,1728449432258,-150.0,0.00022378,2]
[340066135,1728449432270,-534.59,0.00022378,2]
[340066136,1728449432280,-139.10055413,0.00022411,2]
[340066158,1728449438025,-14794.1453,0.000129,2]
[340066159,1728449438034,-885.52,0.00022411,2]
[340066160,1728449438043,-150.0,0.00022438,2]
[340066161,1728449438052,-358.92,0.00022438,2]
[340066162,1728449438061,-150.0,0.00022438,2]
[340066163,1728449438070,-358.92,0.00022438,2]
[340066164,1728449438079,-150.0,0.00022438,2]
[340066165,1728449438088,-358.92,0.00022438,2]
[340066166,1728449438098,-150.0,0.00022438,2]
[340066167,1728449438107,-534.59,0.00022478,2]
[340066168,1728449438117,-534.59,0.00022478,2]
[340066169,1728449438126,-3000.0,0.000225,2]
[340066170,1728449438135,-429.25,0.0002274,2]
[340066171,1728449438144,-425.02,0.0002274,2]
[340066172,1728449438153,-305.99,0.0002274,2]
[340066173,1728449438163,-305.77,0.0002274,2]
[340066174,1728449438172,-150.0,0.0002274,2]
[340066175,1728449438181,-400.0,0.000228,8]
[340066176,1728449438191,-236.0,0.0002289,2]
[340066177,1728449438200,-900.0,0.000229,8]
[340066178,1728449438209,-532.63628522,0.00023,2]
[340066184,1728449443166,-17.36371478,0.00023,2]
[340066185,1728449443176,-471.38771592,0.00023129,2]
[340066186,1728449443185,-217.0,0.00023136,2]
[340066187,1728449443194,-166.32413664,0.00023146,2]
[340066188,1728449443203,-529.05713006,0.00023199,2]
[340066189,1728449443212,-999.28,0.000232,2]
[340066190,1728449443221,-5075.9256798,0.000232,2]
[340066191,1728449443230,-195.5,0.00023216,120]
[340066192,1728449443240,-75608.3524708,0.0002322,4]
[340066193,1728449443250,-150.5,0.00023226,120]
[340066194,1728449443260,-478.57926402,0.00023226,2]
[340066195,1728449443270,-151.0,0.00023229,7]
[340066196,1728449443279,-58331.7299571,0.00023229,2]
[340066197,1728449443290,-3492.5543237,0.00023229,2]
[340066198,1728449443301,-2763.6583931,0.00023229,2]
[340066199,1728449443309,-13268.2106719,0.00023229,2]
[340066200,1728449443319,-520.8330134,0.00023229,2]
[340066201,1728449443329,-153.506429,0.0002323,7]
[340066202,1728449443338,-236.0,0.0002323,2]
[340066203,1728449443347,-151.0,0.0002323,7]
[340066204,1728449443355,-52110.1350576,0.0002323,2]
[340066205,1728449443366,-45888.5401581,0.0002323,2]
[340066206,1728449443374,-3120.0425161,0.0002323,2]
[340066207,1728449443384,-2747.5307085,0.0002323,2]
[340066208,1728449443393,-2468.889783,0.0002323,2]
[340066209,1728449443402,-2174.121173,0.0002323,2]
[340066210,1728449443411,-11853.0386565,0.0002323,2]
[340066213,1728449443420,-10437.8666412,0.0002323,2]
[340066216,1728449443429,-2283.0272007,0.0002323,2]
[340066218,1728449443438,-156.17,0.00023233,2]
[340066219,1728449443447,-18902.0881177,0.00023233,4]
[340066220,1728449443456,-2261.41844405,0.00023233,2]
[340066221,1728449443466,-159.61546915,0.00023235,2]
[340066222,1728449443475,-500.0,0.00023235,2]
[340066223,1728449443484,-150.0,0.00023235,2]
[340066224,1728449443493,-151.0,0.00023236,7]
[340066225,1728449443502,-151.0,0.00023236,7]
[340066226,1728449443510,-151.0,0.00023236,7]
[340066227,1728449443519,-151.0,0.00023236,7]
[340066228,1728449443528,-151.0,0.00023236,7]
[340066229,1728449443537,-150.5,0.00023236,120]
[340066230,1728449443546,-187.02,0.00023236,120]
[340066231,1728449443555,-151.0,0.00023236,7]
[340066232,1728449443564,-151.0,0.00023236,7]
[340066233,1728449443573,-151.0,0.00023236,7]
[340066234,1728449443582,-151.0,0.00023236,7]
[340066235,1728449443591,-271.375354,0.00023236,7]
[340066236,1728449443600,-271.375354,0.00023236,7]
[340066237,1728449443609,-242359.25324209,0.00023236,4]
[340066254,1728449446027,-395.49,0.00021589,2]
[340066255,1728449446041,-271.375354,0.00023236,7]
[340066256,1728449446054,-4610.56267269,0.00023236,4]
[340066258,1728449771310,150.21,0.00010959,2]
[340066259,1728450204534,250.0,0.00011,2]
[340066266,1728450632036,-300.0,0.00013,2]
[340066267,1728450632046,-350.0,0.00015,2]
[340066268,1728450632056,-1083.0,0.000167,2]
[340066269,1728450632067,-160.14,0.00016799,2]
[340066270,1728450632076,-400.0,0.00017,2]
[340066271,1728450632086,-298.78,0.00019203,2]
[340066272,1728450632096,-300.0,0.0002098,2]
[340066273,1728450632108,-150.55,0.00020981,2]
[340066274,1728450632118,-1207.97,0.00020981,2]
[340066275,1728450632127,-499.99,0.00020981,2]
[340066276,1728450632136,-467.56,0.00020981,2]
[340066277,1728450632146,-433.24055257,0.00020981,2]
[340066278,1728450632158,-2399.99999998,0.00020981,2]
[340066279,1728450632169,-2274.32944745,0.00020981,2]